fUSD/lending_fUSD_20240611
["ID","MTS","AMOUNT","RATE_DAILY","PERIOD"]
[329053103,1718071936661,-2408.90844153,0.00029998,2]
[329053104,1718071936679,-500.0,0.00029998,2]
[329053105,1718071936693,-13800.39314064,0.00029998,2]
[329053106,1718071936707,-9778.40861839,0.00029998,2]
[329053107,1718071936718,-500.0,0.00029998,4]
[329053108,1718071936727,-500.0,0.00029998,4]
[329053109,1718071936738,-891.74,0.00029998,4]
[329053110,1718071936749,-939.36,0.00029998,4]
[329053111,1718071936760,-1027.38,0.00029998,4]
[329053112,1718071936771,-4413.11138141,0.00029998,4]
[329053113,1718071936886,-1000.0,0.00017259,2]
[329053114,1718071936897,-5896.54113375,0.0002904,2]
[329053115,1718071936911,-500.0,0.00029863,4]
[329053116,1718071936923,-500.0,0.00029863,4]
[329053117,1718071936934,-500.0,0.00029863,4]
[329053118,1718071936944,-500.0,0.00029863,4]
[329053119,1718071936955,-500.0,0.00029863,4]
[329053120,1718071936967,-500.0,0.00029863,4]
[329053121,1718071936980,-722.38861859,0.00029998,4]
[329053122,1718071936994,-1177.55,0.00029998,4]
[329053123,1718071937004,-4206.9,0.00029998,4]
[329053124,1718071937016,-530.12,0.00029998,4]
[329053125,1718071937026,-500.0,0.00029999,4]
[329053126,1718071937039,-477.61541832,0.00029999,4]
[329053127,1718071937050,-500.0,0.00029999,4]
[329053128,1718071937060,-500.0,0.00029999,4]
[329053129,1718071937071,-500.0,0.00029999,4]
[329053130,1718071937081,-500.0,0.00029999,4]
[329053131,1718071937092,-518.26425774,0.00029999,4]
[329053132,1718071937104,-891.74,0.00029999,4]
[329053133,1718071937115,-891.74,0.00029999,4]
[329053134,1718071937125,-891.74,0.00029999,4]
[329053135,1718071937136,-891.74,0.00029999,4]
[329053136,1718071937148,-891.74,0.00029999,4]
[329053137,1718071937159,-891.80520794,0.00029999,4]
[329053138,1718071937169,-939.36,0.00029999,4]
[329053139,1718071937180,-939.36,0.00029999,4]
[329053140,1718071937194,-939.36,0.00029999,4]
[329053141,1718071937204,-939.36,0.00029999,4]
[329053142,1718071937214,-939.36,0.00029999,4]
[329053143,1718071937224,-939.3935703,0.00029999,4]
[329053144,1718071937234,-1027.38,0.00029999,4]
[329053145,1718071937244,-1027.38,0.00029999,4]
[329053146,1718071937255,-1027.38,0.00029999,4]
[329053147,1718071937265,-1027.38,0.00029999,4]
[329053148,1718071937276,-1027.38,0.00029999,4]
[329053149,1718071937290,-1027.58094703,0.00029999,4]
[329053150,1718071937300,-5135.5,0.00029999,4]
[329053151,1718071937310,-5135.5,0.00029999,4]
[329053152,1718071937320,-5135.5,0.00029999,4]
[329053153,1718071937331,-5135.5,0.00029999,4]
[329053154,1718071937342,-5135.5,0.00029999,4]
[329053155,1718071937352,-5135.6385549,0.00029999,4]
[329053156,1718071937362,-1177.55,0.00029999,4]
[329053157,1718071937372,-1177.55,0.00029999,4]
[329053158,1718071937383,-1177.55,0.00029999,4]
[329053159,1718071937393,-1177.55,0.00029999,4]
[329053160,1718071937403,-1177.55,0.00029999,4]
[329053161,1718071937414,-1177.6284034,0.00029999,4]
[329053162,1718071937424,-4206.9,0.00029999,4]
[329053163,1718071937434,-4206.9,0.00029999,4]
[329053164,1718071937444,-4206.9,0.00029999,4]
[329053165,1718071937454,-4206.9,0.00029999,4]
[329053166,1718071937464,-4206.9,0.00029999,4]
[329053167,1718071937474,-4206.9548,0.00029999,4]
[329053168,1718071937484,-530.12,0.00029999,4]
[329053169,1718071937494,-530.12,0.00029999,4]
[329053170,1718071937505,-530.12,0.00029999,4]
[329053171,1718071937516,-530.12,0.00029999,4]
[329053172,1718071937527,-530.12,0.00029999,4]
[329053173,1718071937541,-530.26825223,0.00029999,4]
[329053174,1718071937552,-412920.62675567,0.0003,2]
[329053175,1718071937566,-284.6205322,0.0003,2]
[329053176,1718071937580,-1474.87076868,0.0003,2]
[329053177,1718071937593,-311.04706871,0.0003,2]
[329053178,1718071937687,-1047.95010277,0.00029512,2]
[329053179,1718071937697,-155.0,0.00029862,2]
[329053180,1718071937708,-117.14989743,0.00029862,2]
[329053181,1718071937721,-247.05587326,0.00029862,2]
[329053182,1718071937733,-155.48416582,0.00029863,4]
[329053183,1718071937743,-500.0,0.00029863,4]
[329053184,1718071937754,-6.07916908,0.00029863,4]
[329053185,1718071937767,-493.92083092,0.00029863,4]
[329053186,1718071937778,-500.0,0.00029863,4]
[329053187,1718071937792,-500.0,0.00029863,4]
[329053188,1718071937802,-535.75463978,0.0003,2]
[329053189,1718071937816,-1134.83532094,0.0003,2]
[329053190,1718071937829,-251.88860311,0.0003,2]
[329053191,1718071937841,-597416.33412055,0.0003,2]
[329053192,1718071937854,-12020.04422208,0.0003,2]
[329053193,1718071937867,-11690.95609461,0.0003,2]
[329053194,1718072825134,-1000.0,0.00016551,2]
[329053195,1718072825161,-364.20577069,0.00016551,2]
[329053196,1718072825206,-2195.01899183,0.00016552,2]
[329053197,1718072825230,-390.28269884,0.00016562,2]
[329053198,1718072846116,-2341.18690116,0.00016562,2]
[329053199,1718072846140,-195.82725417,0.00017054,2]
[329053200,1718072846165,-220.9331188,0.00017055,2]
[329053201,1718072846190,-150.0,0.00017055,2]
[329053202,1718072846214,-625.97046574,0.00017056,2]
[329053203,1718072846240,-396.93395566,0.00017057,2]
[329053204,1718072952132,-1190.86384327,0.00017056,2]
[329053205,1718072952157,-430.69221087,0.00017057,2]
[329053206,1718072952181,-286.00454444,0.00017057,2]
[329053207,1718072952207,-1733.06554559,0.00017057,2]
[329053208,1718072962113,-7434.32719319,0.00017057,2]
[329053209,1718072962137,-433.46583372,0.00017259,2]
[329053210,1718072962162,-155.46608564,0.00017532,2]
[329053211,1718073036260,-1785.6061,0.00016957,2]
[329053215,1718073036274,-181.69391436,0.00017532,2]
[329053217,1718073036285,-150.0,0.00017532,2]
[329053221,1718073036299,-54.90898564,0.00017532,2]
[329053226,1718073036316,-95.09101436,0.00017532,2]
[329053228,1718073036327,-150.0,0.00017532,2]
[329053230,1718073036339,-150.0,0.00017532,2]
[329053232,1718073036352,-220.54914969,0.00017532,2]
[329053234,1718073036370,-748.22233595,0.00017532,2]
[329053237,1718073036383,-1433.62961764,0.00017532,2]
[329053238,1718073036397,-3763.2262,0.00017532,2]
[329053239,1718073036410,-600.69020861,0.00017532,2]
[329053240,1718073036430,-3092.91572371,0.00017532,2]
[329053241,1718073036443,-1356.52,0.00017532,2]
[329053242,1718073036456,-789.29286824,0.00017532,2]
[329053243,1718073037417,-8484.32958294,0.00017532,2]
[329053245,1718073037429,-150.0,0.00017533,2]
[329053248,1718073037447,-500.0,0.000185,2]
[329053251,1718073037460,-227.47,0.00018761,2]
[329053253,1718073037471,-1627.52,0.00018761,2]
[329053255,1718073037482,-411.95127253,0.00019,2]
[329053257,1718073037493,-741.69354235,0.0001945,2]
[329053259,1718073037505,-499.99,0.00019452,2]
[329053260,1718073037520,-548.88488712,0.0002,2]
[329053263,1718073037531,-155.0,0.0002,2]
[329053265,1718073037542,-155.0,0.0002,2]
[329053266,1718073037555,-187.6090952,0.0002,2]
[329053268,1718073037567,-155.0,0.0002,2]
[329053270,1718073037578,-226.7178388,0.000201,2]
[329053273,1718073037590,-790.86878271,0.00022,2]
[329053275,1718073037601,-634.52,0.0002304,2]
[329053277,1718073037615,-12139.41079325,0.00024117,2]
[329053279,1718073037630,-1133.52201678,0.00024117,2]
[329053282,1718073037645,-259.37769393,0.00024117,2]
[329053393,1718073040035,-288.55330097,0.00024117,2]
[329053395,1718073040050,-10079.13619507,0.00024117,2]
[329053397,1718073040063,-1000.0,0.00024191,2]
[329053399,1718073040075,-200.0,0.00024344,2]
[329053400,1718073040087,-154.86,0.00024384,2]
[329053401,1718073040098,-151.45,0.00024384,2]
[329053402,1718073040114,-3547.0,0.000246,2]
[329053403,1718073040127,-153.53,0.00024695,2]
[329053404,1718073040138,-408.52,0.00024727,2]
[329053405,1718073040150,-250.0,0.00024729,2]
[329053406,1718073040162,-250.0,0.00024753,2]
[329053407,1718073040174,-155.49,0.00024753,2]
[329053408,1718073040185,-296.14,0.00024799,2]
[329053409,1718073040197,-6800.13647761,0.000249,2]
[329053410,1718073040209,-2186.0,0.00024926,2]
[329053411,1718073040222,-1250.0,0.00025,2]
[329053412,1718073040234,-155.0,0.00025,2]
[329053413,1718073040245,-1277.51036429,0.00025,2]
[329053414,1718073040257,-326.14509392,0.00025,2]
[329053415,1718073040269,-159.16193086,0.00025,2]
[329053416,1718073040281,-159.16193086,0.00025,2]
[329053417,1718073040292,-155.0,0.00025052,2]
[329053418,1718073040303,-250.0,0.00025055,2]
[329053419,1718073040314,-454.28719804,0.000252,3]
[329053420,1718073040327,-679.6,0.000252,3]
[329053421,1718073040340,-6790.05964307,0.000252,3]
[329053422,1718073040354,-3816.05315889,0.000252,3]
[329053423,1718073040370,-1000.0,0.00025205,2]
[329053424,1718073040381,-347.98,0.00025235,2]
[329053425,1718073040392,-540.0,0.00025244,2]
[329053426,1718073040403,-634.52,0.00025304,2]
[329053427,1718073040414,-540.0,0.00025314,2]
[329053428,1718073040429,-540.0,0.00025383,2]
[329053429,1718073040440,-540.0,0.00025452,2]
[329053430,1718073040452,-540.0,0.00025521,2]
[329053431,1718073040463,-540.0,0.00025591,2]
[329053432,1718073040474,-540.0,0.0002566,2]
[329053433,1718073040485,-540.0,0.00025729,2]
[329053434,1718073040496,-540.0,0.00025798,2]
[329053435,1718073040506,-7289.40584111,0.000258,5]
[329053436,1718073041199,-4450.59415889,0.000258,5]
[329053438,1718073041211,-540.0,0.00025868,2]
[329053439,1718073041222,-540.0,0.00025937,2]
[329053440,1718073041234,-540.0,0.00026006,2]
[329053441,1718073041245,-176.5291284,0.00026032,2]
[329053442,1718073041256,-155.52498407,0.0002604,2]
[329053443,1718073041267,-540.0,0.00026075,2]
[329053444,1718073041277,-540.0,0.00026145,2]
[329053445,1718073041288,-176.5291284,0.00026169,2]
[329053446,1718073041300,-153.71179551,0.00026169,2]
[329053447,1718073041310,-364.20577069,0.00026191,2]
[329053448,1718073041321,-156.27003942,0.00026192,2]
[329053449,1718073041332,-540.0,0.00026214,2]
[329053450,1718073041343,-172.36,0.00026221,2]
[329053451,1718073041354,-156.27003942,0.00026269,2]
[329053452,1718073041368,-540.0,0.00026283,2]
[329053453,1718073041380,-156.80357198,0.00026343,2]
[329053454,1718073041392,-540.0,0.00026352,2]
[329053455,1718073041403,-155.52498407,0.00026392,2]
[329053456,1718073041414,-540.0,0.00026421,2]
[329053457,1718073041425,-153.71179551,0.00026446,2]
[329053458,1718073041439,-540.0,0.00026491,2]
[329053459,1718073041449,-540.0,0.0002656,2]
[329053460,1718073041462,-176.5291284,0.00026579,2]
[329053461,1718073041473,-440.78,0.00026636,2]
[329053462,1718073041485,-159.22635739,0.00026641,2]
[329053463,1718073041496,-153.71179551,0.00026807,2]
[329053464,1718073041507,-161.25466287,0.00026856,2]
[329053465,1718073041519,-156.80357198,0.00026908,2]
[329053466,1718073041530,-176.5291284,0.0002691,2]
[329053467,1718073041541,-155.13754276,0.00026911,2]
[329053468,1718073041554,-176.5291284,0.00026926,2]
[329053469,1718073041568,-176.5291284,0.00026948,2]
[329053470,1718073041580,-755.16666228,0.00026998,2]
[329053471,1718073041592,-1300.0,0.00027,2]
[329053472,1718073041874,-1000.0,0.00027055,2]
[329053473,1718073041886,-166.7402553,0.00027057,2]
[329053474,1718073041896,-180.0,0.00027064,2]
[329053475,1718073041907,-161.25466287,0.00027111,2]
[329053476,1718073041918,-1000.0,0.00027215,2]
[329053477,1718073041932,-153.45996501,0.00027282,2]
[329053478,1718073041943,-161.25466287,0.0002735,2]
[329053479,1718073041953,-176.5291284,0.00027368,2]
[329053480,1718073041966,-794.03447589,0.0002739,2]
[329053482,1718073041977,-200.71964863,0.00027397,7]
[329053484,1718073041987,-177.31,0.00027397,2]
[329053486,1718073041998,-150.29,0.00027397,2]
[329053488,1718073042008,-153.71179551,0.00027403,2]
[329053490,1718073042019,-176.5291284,0.00027429,2]
[329053492,1718073042030,-166.66666666,0.00027461,2]
[329053494,1718073042041,-176.5291284,0.00027529,2]
[329053496,1718073042052,-634.52,0.00027568,2]
[329053498,1718073042062,-176.5291284,0.00027646,2]
[329053500,1718073042073,-173.72,0.00027731,2]
[329053502,1718073042083,-170.199247,0.00027748,2]
[329053504,1718073042094,-150.0666,0.00027748,2]
[329053506,1718073042105,-722.661654,0.00027748,2]
[329053508,1718073042118,-160.697182,0.00027748,2]
[329053510,1718073042129,-186.057153,0.00027748,2]
[329053511,1718073042139,-719.518389,0.00027748,2]
[329053514,1718073042151,-156.27003942,0.00027813,2]
[329053516,1718073042161,-156.80357198,0.0002794,2]
[329053518,1718073042172,-1270.7654,0.00027964,2]
[329053520,1718073042183,-347.98,0.00027975,2]
[329053522,1718073042194,-211.6109,0.00027995,2]
[329053524,1718073042204,-164.92612297,0.00027999,2]
[329053525,1718073042215,-500.0,0.00027999,2]
[329053528,1718073042227,-500.0,0.00027999,2]
[329053530,1718073042238,-500.0,0.00027999,2]
[329053532,1718073042248,-500.0,0.00027999,2]
[329053534,1718073042259,-500.0,0.00027999,2]
[329053536,1718073042270,-500.0,0.00027999,2]
[329053538,1718073042281,-500.0,0.00027999,2]
[329053540,1718073042293,-500.0,0.00027999,2]
[329053542,1718073042304,-500.0,0.00027999,2]
[329053544,1718073042315,-500.0,0.00027999,2]
[329053546,1718073042326,-500.0,0.00027999,2]
[329053548,1718073042336,-500.0,0.00027999,2]
[329053550,1718073042347,-500.0,0.00027999,2]
[329053552,1718073042360,-500.0,0.00027999,2]
[329053554,1718073042370,-256.41259156,0.00027999,2]
[329053573,1718073042592,-243.58740844,0.00027999,2]
[329053575,1718073042603,-600.0,0.00027999,2]
[329053577,1718073042616,-305.862926,0.00028,2]
[329053579,1718073042627,-25.30706466,0.00028017,2]
[329053581,1718073042639,-141.45795023,0.00028017,2]
[329053583,1718073042650,-155.17348106,0.00028037,2]
[329053585,1718073042660,-689.732,0.00028065,2]
[329053587,1718073042670,-222.995,0.00028065,2]
[329053589,1718073042682,-197.215,0.00028065,2]
[329053591,1718073042692,-294.42000371,0.00028065,2]
[329053593,1718073042706,-146.57999629,0.00028065,2]
[329053595,1718073042716,-722.661654,0.00028095,2]
[329053597,1718073042727,-719.518389,0.00028095,2]
[329053600,1718073042737,-161.25466287,0.00028119,2]
[329053602,1718073042748,-166.7402553,0.00028168,2]
[329053603,1718073042758,-156.80357198,0.00028175,2]
[329053605,1718073042769,-176.5291284,0.00028204,2]
[329053607,1718073042779,-176.5291284,0.00028292,2]
[329053609,1718073042790,-2036.15246423,0.00028368,2]
[329053611,1718073042801,-176.5291284,0.00028389,2]
[329053613,1718073042812,-722.661654,0.00028442,2]
[329053616,1718073042824,-719.518389,0.00028442,2]
[329053617,1718073042834,-150.0666,0.00028442,2]
[329053619,1718073042845,-315.31988375,0.00028498,7]
[329053621,1718073042855,-161.12404203,0.00028509,2]
[329053623,1718073042868,-156.27003942,0.00028615,2]
[329053626,1718073042879,-150.29,0.00028643,2]
[329053628,1718073042890,-2619.31098886,0.000287,2]
[329053630,1718073042900,-176.77024669,0.00028706,2]
[329053632,1718073042910,-151.25702288,0.00028706,2]
[329053634,1718073042920,-2015.56745645,0.00028766,2]
[329053636,1718073042931,-154.78487123,0.00028768,2]
[329053637,1718073042941,-154.78487123,0.00028771,2]
[329053639,1718073042951,-722.661654,0.00028789,2]
[329053642,1718073042962,-719.518389,0.00028789,2]
[329053644,1718073042973,-166.94,0.0002879,2]
[329053646,1718073042984,-189.79,0.0002879,2]
[329053648,1718073042994,-150.91,0.0002879,2]
[329053650,1718073043005,-150.91,0.0002879,2]
[329053652,1718073043014,-189.79,0.0002879,2]
[329053653,1718073043025,-189.79,0.0002879,2]
[329053655,1718073043036,-236.92670876,0.00028799,2]
[329053658,1718073043047,-53124.65422386,0.000288,13]
[329053664,1718073043103,-151.19025607,0.00028706,2]
[329053666,1718073043116,-13510.80974393,0.000288,13]
[329053668,1718073043129,-403.37255716,0.000288,13]
[329053670,1718073043141,-4296.86168388,0.000288,13]
[329053753,1718073043998,-180.69395492,0.00017532,2]
[329053758,1718073044010,-5348.04718558,0.000288,13]
[329053762,1718073044024,-531.56496025,0.000288,13]
[329053862,1718073045422,-2326.50000047,0.000288,13]
[329053873,1718073045438,-89141.21980251,0.000288,13]
[329053876,1718073045449,-593078.78019739,0.000288,2]
[329053880,1718073045463,-2363.67445431,0.000288,2]
[329053884,1718073045475,-288.61535007,0.000288,2]
[329053886,1718073045487,-2421.38085988,0.000288,2]
[329053887,1718073045500,-435.67082283,0.000288,2]
[329053889,1718073045515,-14695.69462396,0.000288,2]
[329053892,1718073045528,-7138.00000004,0.000288,2]
[329053896,1718073045540,-331899.83941498,0.000288,2]
[329053899,1718073045550,-176.5291284,0.00028806,2]
[329053902,1718073045564,-2619.31098886,0.00028833,2]
[329053905,1718073045574,-2015.56745636,0.00028869,2]
[329053907,1718073045584,-153.71179551,0.00028896,2]
[329053910,1718073045594,-156.80357198,0.00028903,2]
[329053912,1718073045604,-474.0929,0.00028941,2]
[329053914,1718073045616,-2619.31098886,0.00028967,2]
[329053916,1718073045625,-2015.56745636,0.00028972,2]
[329053918,1718073045636,-1350.0,0.00029,2]
[329053920,1718073045646,-1880.0,0.00029,2]
[329053922,1718073045656,-653.0111043,0.00029,2]
[329053924,1718073045666,-150.0,0.00029,2]
[329053925,1718073045676,-1000.0,0.00029,7]
[329053927,1718073045686,-170.86219828,0.00029049,2]
[329053929,1718073045697,-176.77024666,0.00029058,2]
[329053931,1718073045707,-2015.56745636,0.00029075,2]
[329053933,1718073045718,-748.0,0.000291,2]
[329053935,1718073045728,-2619.31098886,0.000291,15]
[329053936,1718073045738,-722.661654,0.00029136,2]
[329053938,1718073045748,-719.518389,0.00029136,2]
[329053939,1718073045758,-150.0666,0.00029136,2]
[329053940,1718073045768,-155.17348106,0.00029142,2]
[329053941,1718073045777,-156.80357198,0.00029152,2]
[329053942,1718073045787,-155.13754276,0.00029163,2]
[329053943,1718073045797,-153.71179551,0.00029166,2]
[329053944,1718073045807,-156.80357198,0.00029171,2]
[329053945,1718073045817,-2015.56745636,0.00029178,2]
[329053946,1718073045827,-150.91,0.00029223,2]
[329053947,1718073045838,-254.4976171,0.00029233,15]
[329053948,1718073045848,-2619.31098886,0.00029233,15]
[329053949,1718073045858,-566.0,0.00029261,5]
[329053950,1718073045869,-1140.74970779,0.00029266,2]
[329053951,1718073045880,-1102.47439462,0.00029266,2]
[329053952,1718073045889,-1038.83400458,0.00029266,2]
[329053953,1718073045899,-2015.56745636,0.00029281,2]
[329053954,1718073045909,-200.0,0.00029284,2]
[329053955,1718073045919,-500.0,0.00029284,2]
[329053956,1718073045930,-200.0,0.00029284,2]
[329053957,1718073045940,-2507.67177081,0.000293,2]
[329053958,1718073045951,-503.66325874,0.000293,2]
[329053959,1718073045962,-250.79617408,0.000293,2]
[329053960,1718073045972,-601.89563044,0.000293,2]
[329053961,1718073045983,-156.80357198,0.00029336,2]
[329053962,1718073045993,-254.4976171,0.00029367,15]
[329053963,1718073046004,-2619.31098886,0.00029367,15]
[329053964,1718073046014,-2015.56745636,0.00029385,2]
[329053965,1718073046025,-1098.44564888,0.000294,2]
[329053966,1718073046037,-996.8,0.000294,2]
[329053967,1718073046048,-308.04,0.000294,2]
[329053968,1718073046058,-748.0,0.000294,2]
[329053969,1718073046069,-166.76501489,0.00029404,2]
[329053970,1718073046079,-176.77024666,0.00029411,2]
[329053971,1718073046090,-153.71179551,0.00029448,2]
[329053972,1718073046100,-150.0,0.0002946,2]
[329053973,1718073046109,-210.42016996,0.00029482,2]
[329053974,1718073046120,-2015.56745636,0.00029488,2]
[329053975,1718073046130,-226.87488696,0.000295,3]
[329053976,1718073046141,-689.0,0.000295,3]
[329053977,1718073046152,-260.0,0.000295,2]
[329053978,1718073046162,-2458.0,0.000295,3]
[329053979,1718073046173,-9266.81,0.000295,6]
[329053980,1718073046184,-254.4976171,0.000295,15]
[329053981,1718073046194,-2619.31098886,0.000295,15]
[329053982,1718073046251,-151.0,0.00029542,2]
[329053983,1718073046262,-153.45996501,0.00029551,2]
[329053984,1718073046272,-166.76501489,0.00029556,2]
[329053985,1718073046282,-156.80357198,0.0002956,2]
[329053986,1718073046292,-2015.56745636,0.00029591,2]
[329053987,1718073046303,-49777.7223,0.000296,2]
[329053988,1718073046313,-161.12404203,0.00029607,2]
[329053989,1718073046324,-150.0,0.00029628,2]
[329053990,1718073046335,-254.4976171,0.00029633,15]
[329053991,1718073046345,-2619.31098886,0.00029633,15]
[329053992,1718073046355,-500.0,0.00029663,2]
[329053993,1718073046367,-2015.56745636,0.00029694,2]
[329053994,1718073046378,-2047.46209913,0.00029699,4]
[329053995,1718073046388,-748.0,0.000297,2]
[329053996,1718073046398,-44795.85398643,0.000297,2]
[329053997,1718073046408,-370.58849,0.000297,2]
[329053998,1718073046419,-1697.0,0.000297,2]
[329053999,1718073046431,-155.49,0.00029704,2]
[329054000,1718073046444,-176.5291284,0.00029734,2]
[329054001,1718073046455,-150.91,0.00029753,2]
[329054002,1718073046466,-219.65,0.00029753,3]
[329054003,1718073046477,-200.0,0.00029759,2]
[329054004,1718073046487,-254.69827285,0.00029761,61]
[329054005,1718073046498,-300.39886566,0.00029761,61]
[329054006,1718073046509,-170.7902592,0.00029763,2]
[329054007,1718073046520,-176.77024666,0.00029763,2]
[329054008,1718073046531,-191.1618902,0.00029763,2]
[329054009,1718073046542,-3756.1382,0.00029763,2]
[329054010,1718073046554,-100000.0,0.00029763,2]
[329054011,1718073046565,-300.0,0.00029763,2]
[329054012,1718073046576,-39531.81947546,0.00029763,2]
[329054013,1718073046590,-122852.36522454,0.00029763,2]
[329054014,1718073046601,-1000.0,0.00029763,2]
[329054015,1718073046611,-500.0,0.00029766,2]
[329054016,1718073046623,-2600.0,0.00029766,2]
[329054017,1718073046634,-2000.0,0.00029766,2]
[329054018,1718073046644,-254.4976171,0.00029767,15]
[329054019,1718073046654,-2619.31098886,0.00029767,15]
[329054020,1718073046665,-2015.56745636,0.00029797,2]
[329054021,1718073046675,-2000.0,0.00029799,90]
[329054022,1718073046685,-10114.0,0.000298,7]
[329054023,1718073046696,-1218.0,0.000298,2]
[329054024,1718073046706,-176.5291284,0.00029812,2]
[329054025,1718073046717,-634.52,0.00029832,2]
[329054026,1718073046727,-213.0,0.00029833,15]
[329054027,1718073046738,-321.0,0.00029833,15]
[329054028,1718073046748,-150.0,0.00029839,2]
[329054029,1718073046759,-213.0,0.00029843,15]
[329054030,1718073046769,-321.0,0.00029843,15]
[329054031,1718073046780,-150.91,0.00029848,2]
[329054032,1718073046790,-213.0,0.00029853,15]
[329054033,1718073046801,-321.0,0.00029853,15]
[329054034,1718073046811,-150.91,0.00029853,2]
[329054035,1718073046822,-18572.5247004,0.00029858,5]
[329054036,1718073046832,-201.31,0.00029858,2]
[329054037,1718073046842,-2061.91996776,0.00029861,2]
[329054038,1718073046852,-539.38156441,0.00029861,2]
[329054039,1718073046864,-478.64407195,0.00029861,7]
[329054041,1718073046875,-242.11517999,0.00029861,2]
[329054043,1718073046885,-651.13041606,0.00029861,2]
[329054045,1718073046895,-12046.90846808,0.00029861,2]
[329054047,1718073046905,-490.72494647,0.00029861,2]
[329054049,1718073046916,-4475.72305211,0.00029861,2]
[329054051,1718073046927,-155.64951374,0.00029861,2]
[329054053,1718073046937,-2344.03620251,0.00029861,2]
[329054055,1718073046947,-161.48995319,0.00029861,2]
[329054057,1718073046957,-620.13052654,0.00029861,2]
[329054059,1718073046967,-155.44876757,0.00029861,2]
[329054061,1718073046977,-1382.70872343,0.00029861,2]
[329054063,1718073046987,-544.77465953,0.00029861,2]
[329054065,1718073046997,-326.10422737,0.00029861,2]
[329054067,1718073047006,-155.5370173,0.00029861,2]
[329054069,1718073047017,-155.71106734,0.00029861,3]
[329054071,1718073047026,-3546.53234748,0.00029861,2]
[329054073,1718073047036,-1280.57455695,0.00029861,2]
[329054075,1718073047046,-157.57678281,0.00029861,2]
[329054076,1718073047056,-155.10615685,0.00029861,2]
[329054078,1718073047066,-339.8683149,0.00029861,2]
[329054080,1718073047076,-262.91177704,0.00029861,2]
[329054082,1718073047087,-266.62851625,0.00029861,2]
[329054084,1718073047097,-155.28264753,0.00029861,2]
[329054086,1718073047107,-271.3381041,0.00029861,2]
[329054088,1718073047121,-327.87677653,0.00029861,2]
[329054090,1718073047131,-302.65144367,0.00029861,2]
[329054092,1718073047141,-42226.921896,0.00029861,2]
[329054094,1718073047151,-807.68750229,0.00029861,2]
[329054096,1718073047161,-811.7231,0.00029861,2]
[329054098,1718073047171,-251.45160725,0.00029861,2]
[329054100,1718073047181,-3893.22745947,0.00029861,2]
[329054102,1718073047191,-399.66343098,0.00029861,2]
[329054104,1718073047201,-850.48262801,0.00029861,2]
[329054106,1718073047211,-12774.04791329,0.00029861,3]
[329054108,1718073047222,-297.03907198,0.00029861,2]
[329054110,1718073047232,-486.22456388,0.00029861,3]
[329054112,1718073047242,-7674.27078051,0.00029861,2]
[329054114,1718073047252,-440.27761403,0.00029861,2]
[329054116,1718073047263,-150.0,0.00029862,10]
[329054118,1718073047274,-150.0,0.00029862,10]
[329054120,1718073047285,-225.79273322,0.00029862,2]
[329054122,1718073047294,-610.91702673,0.00029862,2]
[329054124,1718073047305,-526.17377398,0.00029862,2]
[329054126,1718073047317,-569.60320223,0.00029862,2]
[329054128,1718073047328,-20104.71054048,0.00029862,2]
[329054130,1718073047339,-1000.0,0.00029862,2]
[329054132,1718073047350,-35096.56281874,0.00029863,2]
[329054134,1718073047360,-200.0,0.00029863,4]
[329054136,1718073047375,-499.06601804,0.00029863,4]
[329054138,1718073047386,-502.0540115,0.00029863,4]
[329054140,1718073047396,-462.89445973,0.00029863,4]
[329054142,1718073047406,-500.0,0.00029863,4]
[329054144,1718073047418,-507.81889019,0.00029863,4]
[329054146,1718073047429,-295.64804966,0.00029863,4]
[329054148,1718073047442,-155.56200336,0.00029863,4]
[329054150,1718073047453,-500.0,0.00029863,4]